[Event "XXX Roquetas de Mar Open 2019"]
[Site "Roquetas de Mar"]
[Date "2019.01.05"]
[Round "6"]
[White "Nasuta, Grzegorz"]
[Black "Medarde Santiago, Luis Marcos"]
[Result "1-0"]
[ECO "B40"]
[WhiteElo "2534"]
[BlackElo "2374"]
[Annotator "ChessBase"]
[PlyCount "115"]
[EventDate "2019.01.02"]
[EventType "swiss"]
[EventCountry "ESP"]
[SourceTitle "playchess.com"]
[Source "ChessBase"]
[SourceQuality "1"]
[TimeControl "5400+30"]

1. e4 {[%emt 0:00:00]} c5 {[%emt 0:03:39]} 2. Nf3 {[%emt 0:00:00]} e6 {[%emt 0:00:40]} 3. b3 {[%emt 0:00:00]} b6 {[%emt 0:00:25]} 4. Bd3 {[%emt 0:00:04]} Bb7 {[%emt 0:00:46]} 5. O-O {[%emt 0:00:09]} Nc6 {[%emt 0:04:01]} 6. Re1 {[%emt 0:00:45]} Nf6 {[%emt 0:02:04]} 7. e5 {[%emt 0:01:31]} Ng4 {[%emt 0:02:53]} 8. h3 {[%emt 0:13:06]} Nh6 {[%emt 0:00:15]} 9. Bb2 {[%emt 0:00:46]} Be7 {[%emt 0:00:56]} 10. Qe2 {[%emt 0:22:07]} Nb4 {[%emt 0:13:40]} 11. Be4 {[%emt 0:00:14]} Bxe4 {[%emt 0:00:16]} 12. Qxe4 {[%emt 0:00:07]} Nf5 {[%emt 0:01:09]} 13. Na3 {[%emt 0:02:00]} O-O {[%emt 0:04:11]} 14. d4 {[%emt 0:18:28]} cxd4 {[%emt 0:14:57]} 15. Nxd4 {[%emt 0:00:13]} Nxd4 {[%emt 0:01:13]} 16. Qxd4 {[%emt 0:00:19]} Rc8 {[%emt 0:01:02]} 17. c3 {[%emt 0:12:30]} Nc6 {[%emt 0:06:42]} 18. Qe4 {[%emt 0:09:57]} f6 {[%emt 0:02:29]} 19. exf6 {[%emt 0:04:07]} Rxf6 {[%emt 0:00:15]} 20. c4 {[%emt 0:03:55]} Bc5 {[%emt 0:06:12]} 21. Re2 {[%emt 0:00:07]} Rf7 {[%emt 0:01:15]} 22. Nc2 {[%emt 0:00:29]} Qg5 {[%emt 0:01:03]} 23. Rf1 {[%emt 0:05:37]} Rcf8 {[%emt 0:01:13]} 24. Bc1 {[%emt 0:00:01]} Qh5 {[%emt 0:02:31]} 25. Qg4 {[%emt 0:00:56]} Qxg4 {[%emt 0:01:45]} 26. hxg4 {[%emt 0:00:01]} Nd4 {[%emt 0:00:57]} 27. Nxd4 {[%emt 0:00:14]} Bxd4 {[%emt 0:00:01]} 28. Be3 {[%emt 0:01:20]} Bxe3 {[%emt 0:00:10]} 29. Rxe3 {[%emt 0:00:06]} Rf4 {[%emt 0:02:56]} 30. Rd3 {[%emt 0:00:33]} R8f7 {[%emt 0:02:17]} 31. f3 {[%emt 0:00:10]} Kf8 {[%emt 0:00:29]} 32. Rfd1 {[%emt 0:02:11]} Ke8 {[%emt 0:00:07]} 33. Kh2 {[%emt 0:00:07]} h5 {[%emt 0:01:56]} 34. Kg3 {[%emt 0:02:07]} hxg4 {[%emt 0:00:02]} 35. Rxd7 {[%emt 0:00:12]} Rxd7 {[%emt 0:06:29]} 36. Rxd7 {[%emt 0:00:02]} Rxf3+ {[%emt 0:05:15]} 37. gxf3 {[%emt 0:00:02]} Kxd7 {[%emt 0:00:10]} 38. fxg4 {[%emt 0:03:08]} Kd6 {[%emt 0:05:51]} 39. Kf4 {[%emt 0:00:00]} a5 {[%emt 0:01:07]} 40. g5 {[%emt 0:01:36]} g6 {[%emt 0:02:13]} 41. a3 {[%emt 0:00:34]} Kc5 {[%emt 0:04:26]} 42. Ke5 {[%emt 0:00:05]} a4 {[%emt 0:00:05]} 43. bxa4 {[%emt 0:00:15]} Kxc4 {[%emt 0:00:22]} 44. Kxe6 {[%emt 0:00:05]} Kb3 {[%emt 0:00:08]} 45. Kf6 {[%emt 0:01:13]} Kxa4 {[%emt 0:00:20]} 46. Kxg6 {[%emt 0:00:05]} b5 {[%emt 0:00:07]} 47. Kf5 {[%emt 0:00:30]} Kxa3 {[%emt 0:00:06]} 48. g6 {[%emt 0:00:04]} b4 {[%emt 0:00:02]} 49. g7 {[%emt 0:00:04]} b3 {[%emt 0:00:02]} 50. g8=Q {[%emt 0:00:04]} b2 {[%emt 0:00:04]} 51. Qa8+ {[%emt 0:00:13]} Kb3 {[%emt 0:00:02]} 52. Qb7+ {[%emt 0:00:10]} Kc2 {[%emt 0:00:05]} 53. Qc6+ {[%emt 0:00:03]} Kd1 {[%emt 0:00:05]} 54. Qb5 {[%emt 0:00:09]} Kc2 {[%emt 0:00:06]} 55. Qc4+ {[%emt 0:00:02]} Kd1 {[%emt 0:00:05]} 56. Qb3+ {[%emt 0:00:04]} Kc1 {[%emt 0:00:04]} 57. Qc3+ {[%emt 0:00:05]} Kb1 {[%emt 0:00:03]} 58. Ke4 {[%emt 0:00:10]} 1-0

[Event "XXX Roquetas de Mar Open 2019"]
[Site "Roquetas de Mar"]
[Date "2019.01.05"]
[Round "6"]
[White "Dardha, Daniel"]
[Black "Del Rio De Angelis, Salvador G."]
[Result "1/2-1/2"]
[ECO "A04"]
[WhiteElo "2337"]
[BlackElo "2501"]
[Annotator "ChessBase"]
[PlyCount "49"]
[EventDate "2019.01.02"]
[EventType "swiss"]
[EventCountry "ESP"]
[SourceTitle "playchess.com"]
[Source "ChessBase"]
[SourceQuality "1"]
[TimeControl "5400+30"]

1. Nf3 {[%emt 0:04:44]} d6 {[%emt 0:00:00]} 2. d4 {[%emt 0:00:21]} Nf6 {[%emt 0:00:00]} 3. Bf4 {[%emt 0:02:00]} Nbd7 {[%emt 0:03:02]} 4. e3 {[%emt 0:00:36]} Nh5 {[%emt 0:01:14]} 5. Bg5 {[%emt 0:00:21]} h6 {[%emt 0:00:08]} 6. Bh4 {[%emt 0:00:39]} g5 {[%emt 0:00:10]} 7. Nfd2 {[%emt 0:01:21]} Ndf6 {[%emt 0:00:36]} 8. Be2 {[%emt 0:02:12]} gxh4 {[%emt 0:07:09]} 9. Bxh5 {[%emt 0:00:06]} Nxh5 {[%emt 0:00:06]} 10. Qxh5 {[%emt 0:00:08]} Rg8 {[%emt 0:00:14]} 11. Nc3 {[%emt 0:07:50]} Rxg2 {[%emt 0:01:33]} 12. O-O-O {[%emt 0:01:45]} Qd7 {[%emt 0:02:31]} 13. Rdg1 {[%emt 0:25:54]} Qg4 {[%emt 0:31:07]} 14. Qxg4 {[%emt 0:00:32]} Rxg4 {[%emt 0:00:09]} 15. Nd5 {[%emt 0:01:50]} Kd8 {[%emt 0:02:59]} 16. Rxg4 {[%emt 0:02:00]} Bxg4 {[%emt 0:00:09]} 17. Rg1 {[%emt 0:00:04]} Bf5 {[%emt 0:10:10]} 18. Rg8 {[%emt 0:01:30]} Kd7 {[%emt 0:00:07]} 19. e4 {[%emt 0:02:40]} Bh7 {[%emt 0:00:35]} 20. Rh8 {[%emt 0:00:08]} Bg6 {[%emt 0:00:07]} 21. Nf4 {[%emt 0:02:28]} Re8 {[%emt 0:00:25]} 22. Rg8 {[%emt 0:02:27]} Bh7 {[%emt 0:00:12]} 23. Rh8 {[%emt 0:00:04]} Bg6 {[%emt 0:00:03]} 24. Rg8 {[%emt 0:00:04]} Bh7 {[%emt 0:00:06]} 25. Rh8 {[%emt 0:00:03]} 1/2-1/2

[Event "XXX Roquetas de Mar Open 2019"]
[Site "Roquetas de Mar"]
[Date "2019.01.05"]
[Round "6"]
[White "MARTIN CARMONA, Gaston Manuel"]
[Black "Sosa, Tomas"]
[Result "0-1"]
[ECO "A00"]
[WhiteElo "2329"]
[BlackElo "2499"]
[Annotator "ChessBase"]
[PlyCount "66"]
[EventDate "2019.01.02"]
[EventType "swiss"]
[EventCountry "ESP"]
[SourceTitle "playchess.com"]
[Source "ChessBase"]
[SourceQuality "1"]
[TimeControl "5400+30"]

1. g3 {[%emt 0:05:41]} d5 {[%emt 0:00:00]} 2. c4 {[%emt 0:01:17]} d4 {[%emt 0:00:00]} 3. Bg2 {[%emt 0:01:48]} e5 {[%emt 0:00:00]} 4. e3 {[%emt 0:02:21]} Nc6 {[%emt 0:05:42]} 5. Ne2 {[%emt 0:09:24]} Nb4 {[%emt 0:03:44]} 6. Na3 {[%emt 0:12:00]} Nd3+ {[%emt 0:02:35]} 7. Kf1 {[%emt 0:00:05]} Qf6 {[%emt 0:05:16]} 8. f4 {[%emt 0:12:16]} exf4 {[%emt 0:01:53]} 9. exf4 {[%emt 0:03:44]} Bxa3 {[%emt 0:01:58]} 10. Qa4+ {[%emt 0:02:03]} c6 {[%emt 0:01:06]} 11. Qxa3 {[%emt 0:00:59]} Bf5 {[%emt 0:00:25]} 12. b4 {[%emt 0:03:17]} Nh6 {[%emt 0:07:59]} 13. Bb2 {[%emt 0:06:32]} Rd8 {[%emt 0:05:38]} 14. h3 {[%emt 0:05:39]} O-O {[%emt 0:01:02]} 15. Bf3 {[%emt 0:04:07]} Rfe8 {[%emt 0:00:49]} 16. Rh2 {[%emt 0:01:09]} Qe6 {[%emt 0:11:44]} 17. c5 {[%emt 0:10:14]} Bxh3+ {[%emt 0:10:59]} 18. Kg1 {[%emt 0:00:04]} Nxb2 {[%emt 0:02:47]} 19. Qxb2 {[%emt 0:00:17]} d3 {[%emt 0:00:12]} 20. Nc3 {[%emt 0:00:43]} Qe1+ {[%emt 0:06:23]} 21. Rxe1 {[%emt 0:00:44]} Rxe1+ {[%emt 0:00:06]} 22. Kf2 {[%emt 0:00:03]} Rf1+ {[%emt 0:00:06]} 23. Ke3 {[%emt 0:00:21]} Nf5+ {[%emt 0:00:05]} 24. Ke4 {[%emt 0:00:14]} Nxg3+ {[%emt 0:00:04]} 25. Ke3 {[%emt 0:00:43]} Nf5+ {[%emt 0:00:09]} 26. Ke4 {[%emt 0:00:02]} Rd4+ {[%emt 0:06:52]} 27. Ke5 {[%emt 0:00:01]} Re1+ {[%emt 0:00:08]} 28. Ne2 {[%emt 0:04:20]} Rxe2+ {[%emt 0:05:39]} 29. Bxe2 {[%emt 0:04:56]} f6+ {[%emt 0:00:19]} 30. Ke6 {[%emt 0:00:09]} dxe2 {[%emt 0:00:34]} 31. Qb1 {[%emt 0:01:27]} Rxb4 {[%emt 0:03:07]} 32. Qxb4 {[%emt 0:02:56]} e1=Q+ {[%emt 0:00:22]} 33. Kd7 {[%emt 0:00:03]} Qe7+ {[%emt 0:01:01]} 0-1

[Event "XXX Roquetas de Mar Open 2019"]
[Site "Roquetas de Mar"]
[Date "2019.01.05"]
[Round "6"]
[White "Garcia Martin, Marta"]
[Black "Frolyanov, Dmitry"]
[Result "0-1"]
[ECO "B31"]
[WhiteElo "2296"]
[BlackElo "2517"]
[Annotator "ChessBase"]
[PlyCount "76"]
[EventDate "2019.01.02"]
[EventType "swiss"]
[EventCountry "ESP"]
[SourceTitle "playchess.com"]
[Source "ChessBase"]
[SourceQuality "1"]
[TimeControl "5400+30"]

1. e4 {[%emt 0:01:32]} c5 {[%emt 0:00:00]} 2. Nf3 {[%emt 0:00:14]} Nc6 {[%emt 0:00:05]} 3. Bb5 {[%emt 0:00:44]} g6 {[%emt 0:00:07]} 4. O-O {[%emt 0:05:02]} Bg7 {[%emt 0:00:06]} 5. Re1 {[%emt 0:01:13]} e5 {[%emt 0:00:24]} 6. Bxc6 {[%emt 0:07:23]} dxc6 {[%emt 0:00:06]} 7. d3 {[%emt 0:00:06]} Qc7 {[%emt 0:04:50]} 8. Be3 {[%emt 0:02:23]} b6 {[%emt 0:01:08]} 9. h3 {[%emt 0:07:15]} Nf6 {[%emt 0:00:28]} 10. Qd2 {[%emt 0:00:51]} O-O {[%emt 0:04:37]} 11. Bh6 {[%emt 0:00:10]} Re8 {[%emt 0:00:39]} 12. Bxg7 {[%emt 0:00:06]} Kxg7 {[%emt 0:00:04]} 13. a3 {[%emt 0:04:34]} a5 {[%emt 0:01:20]} 14. Qc3 {[%emt 0:07:12]} Nd7 {[%emt 0:03:30]} 15. Nbd2 {[%emt 0:02:41]} a4 {[%emt 0:01:03]} 16. b3 {[%emt 0:11:57]} axb3 {[%emt 0:00:38]} 17. cxb3 {[%emt 0:00:34]} Ba6 {[%emt 0:00:21]} 18. b4 {[%emt 0:01:54]} cxb4 {[%emt 0:08:56]} 19. axb4 {[%emt 0:00:08]} c5 {[%emt 0:01:38]} 20. bxc5 {[%emt 0:12:26]} Qxc5 {[%emt 0:00:39]} 21. Rec1 {[%emt 0:03:04]} Qd6 {[%emt 0:06:52]} 22. Nc4 {[%emt 0:02:29]} Bxc4 {[%emt 0:00:16]} 23. Qxc4 {[%emt 0:03:03]} Nc5 {[%emt 0:01:47]} 24. Rxa8 {[%emt 0:01:43]} Rxa8 {[%emt 0:00:07]} 25. Nxe5 {[%emt 0:01:14]} Qxe5 {[%emt 0:00:17]} 26. d4 {[%emt 0:00:04]} Qxe4 {[%emt 0:00:20]} 27. dxc5 {[%emt 0:00:05]} Qxc4 {[%emt 0:00:06]} 28. Rxc4 {[%emt 0:00:05]} Rc8 {[%emt 0:00:16]} 29. c6 {[%emt 0:00:30]} Rc7 {[%emt 0:00:16]} 30. h4 Kf6 31. Kf1 {[%emt 0:17:27]} Ke6 {[%emt 0:00:57]} 32. Ke2 {[%emt 0:00:10]} Kd5 {[%emt 0:01:55]} 33. Rf4 {[%emt 0:00:22]} Kxc6 {[%emt 0:00:26]} 34. Kd3 {[%emt 0:00:04]} Kb5 {[%emt 0:01:37]} 35. h5 {[%emt 0:02:51]} Ka5 {[%emt 0:00:55]} 36. h6 {[%emt 0:00:13]} b5 {[%emt 0:00:14]} 37. Re4 {[%emt 0:00:31]} b4 {[%emt 0:01:22]} 38. Re8 {[%emt 0:00:06]} b3 {[%emt 0:01:13]} 0-1

[Event "XXX Roquetas de Mar Open 2019"]
[Site "Roquetas de Mar"]
[Date "2019.01.05"]
[Round "6"]
[White "Sanchez Jerez, Emilio Miguel"]
[Black "Nguyen, Piotr"]
[Result "0-1"]
[ECO "B24"]
[WhiteElo "2183"]
[BlackElo "2403"]
[Annotator "NA"]
[PlyCount "70"]
[EventDate "2019.01.02"]
[EventType "swiss"]
[EventCountry "ESP"]
[SourceTitle "playchess.com"]
[Source "ChessBase"]
[SourceQuality "1"]
[TimeControl "5400+30"]

1. e4 {[%emt 0:00:02]} c5 {[%emt 0:00:00]} 2. Nc3 {[%emt 0:00:13]} Nc6 {[%emt 0:00:04]} 3. Bb5 {[%emt 0:00:25]} Nd4 {[%emt 0:01:04]} 4. Nf3 {[%emt 0:00:07]} g6 {[%emt 0:09:10]} 5. Bc4 {[%emt 0:00:14]} d6 {[%emt 0:09:24]} 6. Nxd4 {[%emt 0:09:52]} cxd4 {[%emt 0:00:04]} 7. Ne2 {[%emt 0:00:06]} Bg7 {[%emt 0:02:56]} 8. d3 {[%emt 0:02:49]} e6 {[%emt 0:06:40]} 9. O-O {[%emt 0:09:39]} Ne7 {[%emt 0:01:09]} 10. c3 {[%emt 0:01:54]} dxc3 {[%emt 0:04:54]} 11. bxc3 {[%emt 0:01:17]} O-O {[%emt 0:02:25]} 12. Bb3 {[%emt 0:07:37]} b6 {[%emt 0:11:53]} 13. Bg5 {[%emt 0:09:38]} h6 {[%emt 0:01:49]} 14. Be3 {[%emt 0:02:20]} Kh7 {[%emt 0:03:57]} 15. f4 {[%emt 0:06:13]} Bd7 {[%emt 0:07:25]} 16. g4 {[%emt 0:10:48]} f5 {[%emt 0:01:30]} 17. gxf5 {[%emt 0:05:45]} gxf5 {[%emt 0:00:58]} 18. Nd4 {[%emt 0:03:47]} Qc8 {[%emt 0:09:31]} 19. Rc1 {[%emt 0:08:08]} Rf6 {[%emt 0:01:40]} 20. h3 {[%emt 0:02:52]} fxe4 {[%emt 0:09:10]} 21. dxe4 {[%emt 0:01:52]} e5 {[%emt 0:00:26]} 22. f5 {[%emt 0:06:13]} exd4 {[%emt 0:01:52]} 23. cxd4 {[%emt 0:00:08]} Qb7 {[%emt 0:01:23]} 24. d5 {[%emt 0:04:37]} Ng8 {[%emt 0:03:41]} 25. Rf4 Re8 {[%emt 0:01:19]} 26. Qf3 {[%emt 0:02:25]} Rc8 {[%emt 0:02:17]} 27. Rf1 {[%emt 0:00:44]} Rc3 {[%emt 0:00:46]} 28. Qf2 {[%emt 0:01:09]} Rf7 {[%emt 0:01:58]} 29. Rh4 {[%emt 0:00:58]} Bb5 {[%emt 0:01:03]} 30. Re1 {[%emt 0:01:07]} Qe7 {[%emt 0:00:11]} 31. Rg4 {[%emt 0:01:42]} Nf6 {[%emt 0:00:55]} 32. Rg6 {[%emt 0:00:40]} Nxe4 {[%emt 0:01:43]} 33. Qg2 {[%emt 0:00:12]} Rxf5 {[%emt 0:02:24]} 34. Re6 {[%emt 0:00:34]} Qh4 {[%emt 0:00:22]} 35. Qg6+ {[%emt 0:00:34]} Kg8 {[%emt 0:00:36]} 0-1